[Event "FIDE WCCC Open-12 2024"]
[Site "Montesilvano"]
[Date "2024.11.24"]
[Round "9.55"]
[White "Sharku, Uvejs"]
[Black "Wang, Luis"]
[Result "1-0"]
[ECO "A45"]
[WhiteElo "1516"]
[BlackElo "1751"]
[Annotator "NA RC"]
[PlyCount "117"]
[EventDate "2024.11.18"]
[EventType "swiss"]
[EventCountry "ITA"]
[SourceTitle "playchess.com"]
[Source "ChessBase"]
[SourceQuality "1"]
[TimeControl "5400+30"]

1. d4 {[%emt 0:00:07]} Nf6 {[%emt 0:00:23]} 2. Bf4 {[%emt 0:00:20]} c5 {[%emt 0:00:26]} 3. dxc5 {[%emt 0:00:41]} Qa5+ {[%emt 0:00:54]} 4. Nc3 {[%emt 0:02:37]} Ne4 {[%emt 0:00:40]} 5. Bd2 {[%emt 0:03:28]} Nxd2 {[%emt 0:01:20]} 6. Qxd2 {[%emt 0:01:48]} Qxc5 {[%emt 0:00:10]} 7. Nf3 {[%emt 0:00:47]} Nc6 {[%emt 0:00:41]} 8. e4 {[%emt 0:00:46]} g6 {[%emt 0:02:14]} 9. Nb5 {[%emt 0:08:11]} Nb4 {[%emt 0:01:34]} 10. c3 {[%emt 0:01:55]} Na6 {[%emt 0:07:43]} 11. Be2 {[%emt 0:06:56]} Bg7 {[%emt 0:03:27]} 12. O-O {[%emt 0:03:36]} Nc7 {[%emt 0:01:47]} 13. Nxc7+ {[%emt 0:04:49]} Qxc7 {[%emt 0:00:23]} 14. Nd4 {[%emt 0:07:09]} Be5 {[%emt 0:01:26]} 15. f4 {[%emt 0:03:25]} Bg7 {[%emt 0:02:40]} 16. Rf3 {[%emt 0:09:46]} b6 {[%emt 0:06:11]} 17. Nb5 {[%emt 0:06:45]} Qc6 {[%emt 0:01:04]} 18. Bd3 {[%emt 0:00:49]} Bb7 {[%emt 0:02:09]} 19. f5 {[%emt 0:03:12]} gxf5 {[%emt 0:03:15]} 20. Rxf5 {[%emt 0:01:24]} e6 {[%emt 0:01:38]} 21. Rf3 {[%emt 0:01:06]} a6 {[%emt 0:01:14]} 22. Nd4 {[%emt 0:05:31]} Qc5 {[%emt 0:03:38]} 23. Qf2 {[%emt 0:26:52]} f5 {[%emt 0:00:54]} 24. Re3 {[%emt 0:00:00]} Bxd4 {[%emt 0:01:29]} 25. cxd4 {[%emt 0:00:00]} Qxd4 {[%emt 0:00:20]} 26. exf5 {[%emt 0:00:00]} O-O-O {[%emt 0:04:46]} 27. Bxa6 {[%emt 0:00:00]} exf5 {[%emt 0:00:32]} 28. Rc3+ {[%emt 0:00:00]} Qxc3 {[%emt 0:01:22]} 29. Bxb7+ {[%emt 0:00:00]} Kxb7 {[%emt 0:00:11]} 30. bxc3 {[%emt 0:00:00]} Rhg8 {[%emt 0:00:45]} 31. Rb1 {[%emt 0:00:00]} Rg6 {[%emt 0:00:14]} 32. Qxf5 {[%emt 0:00:00]} Kc7 {[%emt 0:01:47]} 33. c4 {[%emt 0:00:00]} Ra8 {[%emt 0:00:35]} 34. Rd1 {[%emt 0:00:00]} Rd8 {[%emt 0:08:32]} 35. c5 {[%emt 0:00:00]} b5 {[%emt 0:03:19]} 36. Qe5+ {[%emt 0:00:00]} Kb7 {[%emt 0:02:28]} 37. Rb1 {[%emt 0:00:00]} Kc6 {[%emt 0:00:31]} 38. Qe4+ {[%emt 0:00:00]} d5 {[%emt 0:01:39]} 39. cxd6+ {[%emt 0:00:00]} Kxd6 {[%emt 0:00:35]} 40. Rd1+ {[%emt 0:00:00]} Kc7 {[%emt 0:00:09]} 41. Qc2+ {[%emt 0:00:00]} Rc6 {[%emt 0:00:45]} 42. Qxc6+ {[%emt 0:00:00]} Kxc6 {[%emt 0:00:17]} 43. Rxd8 {[%emt 0:00:00]} Kc5 {[%emt 0:00:13]} 44. g4 {[%emt 0:00:00]} Kc4 {[%emt 0:00:09]} 45. Rd2 {[%emt 0:00:00]} Kc3 {[%emt 0:00:39]} 46. Rf2 {[%emt 0:00:00]} b4 {[%emt 0:00:18]} 47. h4 {[%emt 0:00:00]} Kd4 {[%emt 0:00:38]} 48. g5 {[%emt 0:00:00]} Kc5 {[%emt 0:00:46]} 49. g6 {[%emt 0:00:00]} hxg6 {[%emt 0:00:10]} 50. Rg2 {[%emt 0:00:00]} Kb5 {[%emt 0:01:26]} 51. Rxg6 {[%emt 0:00:00]} Ka4 {[%emt 0:00:17]} 52. h5 {[%emt 0:00:00]} Ka3 {[%emt 0:00:33]} 53. Rg2 {[%emt 0:00:00]} Ka4 {[%emt 0:00:37]} 54. h6 {[%emt 0:00:00]} Kb5 {[%emt 0:00:24]} 55. h7 {[%emt 0:00:00]} Ka4 {[%emt 0:00:17]} 56. h8=Q {[%emt 0:00:00]} Ka5 {[%emt 0:00:16]} 57. Qe8 {[%emt 0:00:00]} b3 {[%emt 0:00:14]} 58. axb3 {[%emt 0:00:00]} Kb4 {[%emt 0:00:10]} 59. Qe4+ {[%emt 0:00:00]} 1-0

[Event "FIDE WCCC Open-12 2024"]
[Site "Montesilvano"]
[Date "2024.11.24"]
[Round "9.56"]
[White "Wang, William Kaiyuan"]
[Black "Zutautas, Mantas"]
[Result "1-0"]
[ECO "C15"]
[WhiteElo "1715"]
[BlackElo "1540"]
[Annotator "NA RC"]
[PlyCount "83"]
[EventDate "2024.11.18"]
[EventType "swiss"]
[EventCountry "ITA"]
[SourceTitle "playchess.com"]
[Source "ChessBase"]
[SourceQuality "1"]
[TimeControl "5400+30"]

1. e4 {[%emt 0:00:01]} e6 {[%emt 0:00:05]} 2. d4 {[%emt 0:00:03]} d5 {[%emt 0:00:04]} 3. Nc3 {[%emt 0:00:03]} Bb4 {[%emt 0:00:12]} 4. Nge2 {[%emt 0:00:07]} dxe4 {[%emt 0:00:21]} 5. a3 {[%emt 0:00:04]} Bf8 {[%emt 0:00:33]} 6. Nxe4 {[%emt 0:00:07]} Nd7 {[%emt 0:00:36]} 7. N2c3 {[%emt 0:01:50]} Ngf6 {[%emt 0:01:38]} 8. Bc4 {[%emt 0:01:48]} b6 {[%emt 1:31:01]} 9. O-O {[%emt 0:04:28]} Bb7 {[%emt 0:00:00]} 10. Ng3 {[%emt 0:05:38]} c5 {[%emt 0:00:00]} 11. d5 {[%emt 0:00:40]} exd5 {[%emt 0:00:00]} 12. Re1+ {[%emt 0:01:04]} Be7 {[%emt 0:00:00]} 13. Bxd5 {[%emt 0:07:40]} Nxd5 {[%emt 0:00:00]} 14. Nxd5 {[%emt 0:00:16]} Bxd5 {[%emt 0:00:00]} 15. Qxd5 {[%emt 0:00:03]} O-O {[%emt 0:00:00]} 16. Bf4 {[%emt 0:05:20]} Re8 {[%emt 0:00:00]} 17. Rad1 {[%emt 0:04:37]} Nf6 {[%emt 0:00:00]} 18. Qg5 {[%emt 0:01:54]} Qc8 {[%emt 0:00:00]} 19. Rxe7 {[%emt 0:03:11]} Rxe7 {[%emt 0:00:00]} 20. Nf5 {[%emt 0:00:15]} Qf8 {[%emt 0:00:00]} 21. Bd6 {[%emt 0:00:56]} Rd8 {[%emt 0:00:00]} 22. f3 {[%emt 0:26:34]} Rxd6 {[%emt 0:00:00]} 23. Rxd6 {[%emt 0:01:23]} Re6 {[%emt 0:00:00]} 24. Rd8 {[%emt 0:12:37]} Re8 {[%emt 0:00:00]} 25. Rxe8 {[%emt 0:08:44]} Nxe8 {[%emt 0:00:00]} 26. Qe7 {[%emt 0:00:05]} g6 {[%emt 0:00:00]} 27. Qg5 {[%emt 0:02:18]} f6 {[%emt 0:00:00]} 28. Qg4 {[%emt 0:02:12]} Kh8 {[%emt 0:00:00]} 29. Ne3 {[%emt 0:02:12]} Qe7 {[%emt 0:00:00]} 30. Kf2 {[%emt 0:00:14]} Nd6 {[%emt 0:00:00]} 31. b3 {[%emt 0:00:20]} Kg7 {[%emt 0:00:00]} 32. h4 {[%emt 0:01:25]} Kf7 {[%emt 0:00:00]} 33. h5 {[%emt 0:00:18]} f5 {[%emt 0:00:00]} 34. hxg6+ {[%emt 0:00:33]} hxg6 {[%emt 0:00:00]} 35. Qf4 {[%emt 0:00:45]} Kg7 {[%emt 0:00:00]} 36. Nd5 {[%emt 0:01:01]} Qe6 {[%emt 0:00:00]} 37. Nc7 {[%emt 0:01:01]} Qe7 {[%emt 0:00:00]} 38. Qxd6 {[%emt 0:00:11]} Qh4+ {[%emt 0:00:00]} 39. Ke2 {[%emt 0:00:16]} Qh1 {[%emt 0:00:00]} 40. Qe7+ {[%emt 0:01:49]} Kh6 {[%emt 0:00:00]} 41. Qf8+ {[%emt 0:00:28]} Kg5 {[%emt 0:00:00]} 42. Ne6+ {[%emt 0:00:07]} 1-0

[Event "FIDE WCCC Open-12 2024"]
[Site "Montesilvano"]
[Date "2024.11.24"]
[Round "9.57"]
[White "Park, Onyoo"]
[Black "Huang, Hao-Xuan"]
[Result "1-0"]
[ECO "D10"]
[WhiteElo "1710"]
[BlackElo "1516"]
[Annotator "NA RC"]
[PlyCount "145"]
[EventDate "2024.11.18"]
[EventType "swiss"]
[EventCountry "ITA"]
[SourceTitle "playchess.com"]
[Source "ChessBase"]
[SourceQuality "1"]
[TimeControl "5400+30"]

1. d4 {[%emt 0:00:18]} d5 {[%emt 0:00:23]} 2. c4 {[%emt 0:00:28]} c6 {[%emt 0:01:54]} 3. cxd5 {[%emt 0:04:25]} cxd5 {[%emt 0:00:24]} 4. Nc3 {[%emt 0:00:09]} Nf6 {[%emt 0:02:27]} 5. Bg5 {[%emt 0:00:16]} Nc6 {[%emt 0:01:27]} 6. Bxf6 {[%emt 0:00:25]} exf6 {[%emt 0:00:53]} 7. e3 {[%emt 0:00:14]} Bb4 {[%emt 0:05:30]} 8. Nge2 {[%emt 0:09:29]} Bg4 {[%emt 0:03:51]} 9. Qb3 {[%emt 0:05:14]} Qd7 {[%emt 0:12:42]} 10. Nf4 {[%emt 0:07:40]} Rd8 {[%emt 0:03:07]} 11. h3 {[%emt 0:01:15]} Be6 {[%emt 0:03:17]} 12. Be2 {[%emt 0:00:51]} O-O {[%emt 0:01:52]} 13. Bf3 {[%emt 0:09:54]} Bxc3+ {[%emt 0:59:13]} 14. Qxc3 {[%emt 0:00:42]} Rc8 {[%emt 0:00:00]} 15. Qd2 {[%emt 0:00:27]} Rfe8 {[%emt 0:00:00]} 16. O-O {[%emt 0:00:36]} Ne7 {[%emt 0:00:00]} 17. Rac1 {[%emt 0:08:17]} Nf5 {[%emt 0:00:00]} 18. Rxc8 {[%emt 0:08:55]} Rxc8 {[%emt 0:00:00]} 19. Rc1 {[%emt 0:03:10]} Rc6 {[%emt 0:00:00]} 20. Rxc6 {[%emt 0:06:58]} Qxc6 {[%emt 0:00:00]} 21. Ne2 {[%emt 0:19:39]} h6 {[%emt 0:00:00]} 22. Nc3 {[%emt 0:03:03]} Nd6 {[%emt 0:00:00]} 23. Ne2 {[%emt 0:03:03]} Nc4 {[%emt 0:00:00]} 24. Qc3 {[%emt 0:00:53]} Qb6 {[%emt 0:00:00]} 25. b3 {[%emt 0:00:26]} Na3 {[%emt 0:00:00]} 26. Nf4 {[%emt 0:00:58]} Qc6 {[%emt 0:00:00]} 27. Qc5 {[%emt 0:01:10]} Qxc5 {[%emt 0:02:54]} 28. dxc5 {[%emt 0:00:07]} Bf5 {[%emt 0:01:29]} 29. Nxd5 {[%emt 0:00:44]} Kf8 {[%emt 0:01:00]} 30. Kf1 {[%emt 0:02:33]} Ke8 {[%emt 0:00:52]} 31. Nc3 {[%emt 0:00:50]} b6 {[%emt 0:01:15]} 32. Be4 {[%emt 0:01:31]} Be6 {[%emt 0:00:52]} 33. cxb6 {[%emt 0:00:48]} axb6 {[%emt 0:00:12]} 34. Ke2 {[%emt 0:00:43]} Kd7 {[%emt 0:00:35]} 35. Bd5 {[%emt 0:00:24]} Kd6 {[%emt 0:00:57]} 36. Bxe6 {[%emt 0:00:17]} fxe6 {[%emt 0:00:11]} 37. Kd3 {[%emt 0:00:19]} f5 {[%emt 0:00:59]} 38. f4 {[%emt 0:01:13]} Kc5 {[%emt 0:00:34]} 39. Ne2 {[%emt 0:00:48]} Kd5 {[%emt 0:00:35]} 40. Nc3+ {[%emt 0:00:15]} Kc5 {[%emt 0:00:11]} 41. e4 {[%emt 0:00:25]} b5 {[%emt 0:00:50]} 42. Ne2 {[%emt 0:00:46]} g6 {[%emt 0:00:31]} 43. Nd4 {[%emt 0:00:44]} Kd6 {[%emt 0:00:16]} 44. exf5 {[%emt 0:00:37]} exf5 {[%emt 0:00:35]} 45. Kc3 {[%emt 0:00:11]} Kd5 {[%emt 0:00:28]} 46. Kd3 {[%emt 0:00:21]} h5 {[%emt 0:00:35]} 47. Nf3 {[%emt 0:00:18]} Ke6 {[%emt 0:00:32]} 48. Kc3 {[%emt 0:00:15]} Nb1+ {[%emt 0:00:28]} 49. Kb2 {[%emt 0:00:17]} Nd2 {[%emt 0:00:26]} 50. Nxd2 {[%emt 0:00:11]} Kd5 {[%emt 0:00:10]} 51. Kc3 {[%emt 0:00:10]} Kc5 {[%emt 0:00:21]} 52. a4 {[%emt 0:00:17]} b4+ {[%emt 0:00:40]} 53. Kd3 {[%emt 0:00:09]} Kd5 {[%emt 0:00:16]} 54. a5 {[%emt 0:00:15]} Kc5 {[%emt 0:00:12]} 55. Nc4 {[%emt 0:00:10]} Kb5 {[%emt 0:00:24]} 56. Kd4 {[%emt 0:00:19]} Kc6 {[%emt 0:00:30]} 57. a6 {[%emt 0:00:13]} h4 {[%emt 0:00:29]} 58. Ke5 {[%emt 0:00:23]} Kc7 {[%emt 0:00:18]} 59. Kf6 {[%emt 0:00:16]} Kb8 {[%emt 0:00:13]} 60. Kxg6 {[%emt 0:00:11]} Ka7 {[%emt 0:00:10]} 61. Kxf5 {[%emt 0:00:05]} Kxa6 {[%emt 0:00:26]} 62. Ke6 {[%emt 0:00:10]} Kb5 {[%emt 0:00:25]} 63. f5 {[%emt 0:00:15]} Kc5 {[%emt 0:00:27]} 64. f6 {[%emt 0:00:12]} Kd4 {[%emt 0:00:06]} 65. f7 {[%emt 0:00:05]} Kc3 {[%emt 0:00:05]} 66. Na5 {[%emt 0:00:04]} Kb2 {[%emt 0:00:18]} 67. f8=Q {[%emt 0:00:09]} Ka3 {[%emt 0:00:16]} 68. Qc5 {[%emt 0:00:20]} Ka2 {[%emt 0:00:29]} 69. Qc2+ {[%emt 0:00:06]} Ka1 {[%emt 0:00:14]} 70. Qe2 {[%emt 0:00:06]} Kb1 {[%emt 0:00:10]} 71. Nc4 {[%emt 0:00:10]} Kc1 {[%emt 0:00:10]} 72. Qd2+ {[%emt 0:00:10]} Kb1 {[%emt 0:00:15]} 73. Qb2# {[%emt 0:00:06]} 1-0

[Event "FIDE WCCC Open-12 2024"]
[Site "Montesilvano"]
[Date "2024.11.24"]
[Round "9.58"]
[White "Andreiev, Andrii"]
[Black "Lenoks, Martin Jr."]
[Result "1-0"]
[ECO "B11"]
[WhiteElo "1704"]
[BlackElo "1514"]
[Annotator "NA RC"]
[PlyCount "57"]
[EventDate "2024.11.18"]
[EventType "swiss"]
[EventCountry "ITA"]
[SourceTitle "playchess.com"]
[Source "ChessBase"]
[SourceQuality "1"]
[TimeControl "5400+30"]

1. e4 {[%emt 0:00:01]} c6 {[%emt 0:00:00]} 2. Nc3 {[%emt 0:00:09]} d5 {[%emt 0:00:10]} 3. Nf3 {[%emt 0:00:15]} dxe4 {[%emt 0:00:12]} 4. Nxe4 {[%emt 0:00:07]} Bf5 {[%emt 1:32:08]} 5. Ng3 {[%emt 0:00:18]} Bg6 {[%emt 0:00:00]} 6. h4 {[%emt 0:00:10]} h6 {[%emt 0:00:00]} 7. Ne5 {[%emt 0:00:59]} Bh7 {[%emt 0:00:00]} 8. Bc4 {[%emt 0:00:29]} e6 {[%emt 0:00:00]} 9. Qe2 {[%emt 0:01:36]} Qc7 {[%emt 0:00:00]} 10. d3 {[%emt 0:05:50]} Bd6 {[%emt 0:00:00]} 11. Bf4 {[%emt 0:08:02]} f6 {[%emt 0:00:00]} 12. Nf7 {[%emt 0:04:28]} Bb4+ {[%emt 0:00:00]} 13. c3 {[%emt 0:00:31]} Bxc3+ {[%emt 0:00:00]} 14. bxc3 {[%emt 0:00:08]} Qxf7 {[%emt 0:00:00]} 15. Bd6 {[%emt 0:03:23]} Kd7 {[%emt 0:00:00]} 16. Ba3 {[%emt 0:01:27]} Ne7 {[%emt 0:00:00]} 17. Ne4 {[%emt 0:02:30]} Nc8 {[%emt 0:00:00]} 18. Nc5+ {[%emt 0:02:01]} Ke8 {[%emt 0:00:00]} 19. Nxe6 {[%emt 0:00:48]} Bxd3 {[%emt 0:00:00]} 20. Qxd3 {[%emt 0:01:34]} Qd7 {[%emt 0:00:00]} 21. Qg6+ {[%emt 0:00:18]} Qf7 {[%emt 0:00:00]} 22. Nc7+ {[%emt 0:00:11]} Kd8 {[%emt 0:00:00]} 23. Qxf7 {[%emt 0:00:17]} Nb6 {[%emt 0:00:00]} 24. O-O-O+ {[%emt 0:00:19]} Kc8 {[%emt 0:00:00]} 25. Be6+ {[%emt 0:00:17]} N8d7 {[%emt 0:00:00]} 26. Bxd7+ {[%emt 0:00:19]} Nxd7 {[%emt 0:00:00]} 27. Qxd7+ {[%emt 0:00:16]} Kb8 {[%emt 0:00:00]} 28. Bd6 {[%emt 0:00:12]} a6 {[%emt 0:00:00]} 29. Nb5# {[%emt 0:00:18]} 1-0

[Event "FIDE WCCC Open-12 2024"]
[Site "Montesilvano"]
[Date "2024.11.24"]
[Round "9.59"]
[White "Mohd Firdaus, Firast Haiqal"]
[Black "Su, Jayden Chenxuan"]
[Result "1/2-1/2"]
[ECO "D02"]
[WhiteElo "1514"]
[BlackElo "1700"]
[Annotator "NA RC"]
[PlyCount "149"]
[EventDate "2024.11.18"]
[EventType "swiss"]
[EventCountry "ITA"]
[SourceTitle "playchess.com"]
[Source "ChessBase"]
[SourceQuality "1"]
[TimeControl "5400+30"]

1. Nf3 {[%emt 0:00:18]} d5 {[%emt 0:00:07]} 2. d4 {[%emt 0:00:26]} Nf6 {[%emt 0:00:10]} 3. Bf4 {[%emt 0:00:10]} c5 {[%emt 0:00:09]} 4. c3 {[%emt 0:00:14]} Nc6 {[%emt 0:00:11]} 5. e3 {[%emt 0:00:06]} Qb6 {[%emt 0:00:08]} 6. Qc2 {[%emt 0:00:32]} Bf5 {[%emt 0:00:12]} 7. Qc1 {[%emt 0:02:16]} e6 {[%emt 0:00:28]} 8. Be2 {[%emt 0:00:15]} Be7 {[%emt 0:00:43]} 9. O-O {[%emt 0:00:23]} h6 {[%emt 0:00:38]} 10. h3 {[%emt 0:00:31]} O-O {[%emt 0:00:21]} 11. Nbd2 {[%emt 0:00:47]} Rac8 {[%emt 0:02:21]} 12. dxc5 {[%emt 0:06:16]} Bxc5 {[%emt 0:00:27]} 13. Nb3 {[%emt 0:00:10]} Be7 {[%emt 0:01:04]} 14. Nfd4 {[%emt 0:01:08]} Nxd4 {[%emt 0:02:52]} 15. exd4 {[%emt 0:00:17]} a6 {[%emt 0:05:01]} 16. Qe3 {[%emt 0:02:39]} Bg6 {[%emt 0:10:48]} 17. Bd3 {[%emt 0:01:24]} Bxd3 {[%emt 0:06:50]} 18. Qxd3 {[%emt 0:00:12]} a5 {[%emt 0:00:45]} 19. Qe2 {[%emt 0:02:08]} a4 {[%emt 0:04:24]} 20. Nc1 {[%emt 0:00:47]} a3 {[%emt 0:01:11]} 21. bxa3 {[%emt 0:01:55]} Rxc3 {[%emt 0:01:01]} 22. Nb3 {[%emt 0:01:19]} Bxa3 {[%emt 0:00:59]} 23. Rab1 {[%emt 0:01:37]} Qd8 {[%emt 0:03:10]} 24. Qb5 {[%emt 0:02:24]} Rc2 {[%emt 0:07:17]} 25. Na5 {[%emt 0:02:09]} Qc8 {[%emt 0:12:16]} 26. Qb3 {[%emt 0:02:07]} Rc3 {[%emt 0:02:17]} 27. Qxb7 {[%emt 0:02:56]} Qxb7 {[%emt 0:00:20]} 28. Nxb7 {[%emt 0:00:32]} Rc2 {[%emt 0:01:14]} 29. Ra1 {[%emt 0:03:57]} Bb2 {[%emt 0:00:22]} 30. Rad1 {[%emt 0:00:06]} Ra8 {[%emt 0:00:37]} 31. Nc5 {[%emt 0:03:38]} Rxa2 {[%emt 0:02:40]} 32. Nd3 {[%emt 0:00:38]} Rc4 {[%emt 0:01:36]} 33. Nxb2 {[%emt 0:00:35]} Rxb2 {[%emt 0:00:12]} 34. Be3 {[%emt 0:00:18]} Ne4 {[%emt 0:00:30]} 35. Rb1 {[%emt 0:01:36]} Re2 {[%emt 0:02:06]} 36. Rfc1 {[%emt 0:00:55]} Nc3 {[%emt 0:00:40]} 37. Kf1 {[%emt 0:02:04]} Rxe3 {[%emt 0:03:44]} 38. fxe3 {[%emt 0:00:24]} Nxb1 {[%emt 0:00:08]} 39. Rxb1 {[%emt 0:00:11]} Rc2 {[%emt 0:00:05]} 40. Re1 {[%emt 0:00:39]} Rd2 {[%emt 0:00:20]} 41. Re2 {[%emt 0:00:45]} Rxe2 {[%emt 0:00:13]} 42. Kxe2 {[%emt 0:00:07]} Kh7 {[%emt 0:00:08]} 43. Kf3 {[%emt 0:02:40]} Kg6 {[%emt 0:00:56]} 44. Kg4 {[%emt 0:03:49]} Kf6 {[%emt 0:00:37]} 45. Kf4 {[%emt 0:03:03]} g5+ {[%emt 0:02:02]} 46. Kg4 {[%emt 0:01:45]} Kg6 {[%emt 0:00:33]} 47. h4 {[%emt 0:15:17]} f5+ {[%emt 0:00:19]} 48. Kh3 {[%emt 0:00:19]} gxh4 {[%emt 0:00:39]} 49. Kxh4 {[%emt 0:00:26]} h5 {[%emt 0:00:16]} 50. g3 {[%emt 0:02:37]} Kh6 {[%emt 0:00:28]} 51. Kh3 {[%emt 0:00:07]} Kg5 {[%emt 0:00:40]} 52. Kg2 {[%emt 0:00:13]} Kg4 {[%emt 0:00:43]} 53. Kf2 {[%emt 0:00:11]} Kg5 {[%emt 0:01:11]} 54. Kf3 {[%emt 0:00:31]} Kg6 {[%emt 0:00:31]} 55. Kf4 {[%emt 0:04:35]} Kf6 {[%emt 0:00:13]} 56. Kf3 {[%emt 0:00:10]} e5 {[%emt 0:00:34]} 57. dxe5+ {[%emt 0:03:49]} Kxe5 {[%emt 0:00:08]} 58. Kf2 {[%emt 0:00:19]} Kf6 {[%emt 0:06:43]} 59. Kg2 {[%emt 0:01:02]} Kg6 {[%emt 0:00:39]} 60. Kf2 {[%emt 0:00:07]} Kg5 {[%emt 0:00:35]} 61. Kf3 {[%emt 0:00:06]} Kg6 {[%emt 0:00:08]} 62. Kg2 {[%emt 0:00:11]} Kf6 {[%emt 0:00:19]} 63. Kf2 {[%emt 0:00:19]} Ke5 {[%emt 0:00:52]} 64. Kf3 {[%emt 0:00:05]} Ke6 {[%emt 0:00:03]} 65. Ke2 {[%emt 0:00:05]} Kd6 {[%emt 0:00:55]} 66. Kd2 {[%emt 0:01:23]} Kc5 {[%emt 0:22:41]} 67. Kd3 {[%emt 0:00:29]} Kd6 {[%emt 0:00:00]} 68. Kd2 {[%emt 0:00:11]} Ke5 {[%emt 0:00:00]} 69. Kd3 {[%emt 0:00:55]} Kd6 {[%emt 0:00:00]} 70. Kd2 {[%emt 0:00:03]} Ke6 {[%emt 0:00:00]} 71. Ke2 {[%emt 0:00:29]} Kf6 {[%emt 0:00:00]} 72. Kf2 {[%emt 0:00:08]} Kg6 {[%emt 0:00:00]} 73. Kg2 {[%emt 0:00:06]} Kh6 {[%emt 0:00:00]} 74. Kh2 {[%emt 0:01:10]} Kg5 {[%emt 0:00:00]} 75. Kh3 {[%emt 0:29:29]} 1/2-1/2

[Event "FIDE WCCC Open-12 2024"]
[Site "Montesilvano"]
[Date "2024.11.24"]
[Round "9.60"]
[White "Zhan, Jayden Zihan"]
[Black "Mamarasulov, Husan"]
[Result "1-0"]
[ECO "B23"]
[WhiteElo "1670"]
[BlackElo "1407"]
[Annotator "NA RC"]
[PlyCount "51"]
[EventDate "2024.11.18"]
[EventType "swiss"]
[EventCountry "ITA"]
[SourceTitle "playchess.com"]
[Source "ChessBase"]
[SourceQuality "1"]
[TimeControl "5400+30"]

1. e4 {[%emt 1:31:00]} c5 {[%emt 0:00:02]} 2. Nc3 {[%emt 0:00:00]} d6 {[%emt 0:00:03]} 3. f4 {[%emt 0:00:00]} Nf6 {[%emt 0:00:18]} 4. Nf3 {[%emt 0:00:00]} Bg4 {[%emt 0:01:03]} 5. Bc4 {[%emt 0:00:00]} e6 {[%emt 0:01:01]} 6. O-O {[%emt 0:00:00]} Be7 {[%emt 0:01:54]} 7. d3 {[%emt 0:00:00]} O-O {[%emt 0:02:03]} 8. h3 {[%emt 0:00:00]} Bxf3 {[%emt 0:01:00]} 9. Qxf3 {[%emt 0:00:00]} Nc6 {[%emt 0:01:03]} 10. Be3 {[%emt 0:00:00]} a6 {[%emt 0:01:29]} 11. a4 {[%emt 0:00:00]} Nb4 {[%emt 0:00:10]} 12. Bb3 {[%emt 0:00:00]} d5 {[%emt 0:01:54]} 13. e5 {[%emt 0:00:00]} Nd7 {[%emt 0:02:55]} 14. Bf2 {[%emt 0:00:00]} f6 {[%emt 0:07:49]} 15. Qg4 {[%emt 0:00:00]} fxe5 {[%emt 0:05:27]} 16. Qxe6+ {[%emt 0:00:00]} Kh8 {[%emt 0:01:16]} 17. fxe5 {[%emt 0:00:00]} d4 {[%emt 0:06:47]} 18. Nd5 {[%emt 0:00:00]} Nxd5 {[%emt 0:13:54]} 19. Bxd5 {[%emt 0:00:00]} Rb8 {[%emt 0:01:55]} 20. Bg3 {[%emt 0:09:30]} Rxf1+ {[%emt 0:09:09]} 21. Rxf1 {[%emt 0:00:00]} b5 {[%emt 0:08:48]} 22. a5 {[%emt 0:00:00]} Bg5 {[%emt 0:05:03]} 23. Qf7 {[%emt 0:00:00]} Be3+ {[%emt 0:01:24]} 24. Kh2 {[%emt 0:00:00]} Qe8 {[%emt 0:05:21]} 25. e6 {[%emt 0:00:00]} Qxf7 {[%emt 0:00:54]} 26. Rxf7 {[%emt 0:00:00]} 1-0

[Event "FIDE WCCC Open-12 2024"]
[Site "Montesilvano"]
[Date "2024.11.24"]
[Round "9.63"]
[White "Stefanov, Stefan"]
[Black "To, Nam Long"]
[Result "0-1"]
[ECO "E91"]
[WhiteElo "1478"]
[BlackElo "1608"]
[Annotator "NA RC"]
[PlyCount "58"]
[EventDate "2024.11.18"]
[EventType "swiss"]
[EventCountry "ITA"]
[SourceTitle "playchess.com"]
[Source "ChessBase"]
[SourceQuality "1"]
[TimeControl "5400+30"]

1. d4 {[%emt 0:00:34]} d6 {[%emt 0:00:54]} 2. Nf3 {[%emt 0:00:15]} Nf6 {[%emt 0:00:17]} 3. c4 {[%emt 0:00:09]} g6 {[%emt 0:00:14]} 4. Nc3 {[%emt 0:00:07]} Bg7 {[%emt 0:00:09]} 5. e4 {[%emt 0:00:06]} O-O {[%emt 0:00:17]} 6. Be2 {[%emt 0:00:06]} b6 {[%emt 0:00:21]} 7. O-O {[%emt 0:01:04]} Bb7 {[%emt 0:00:08]} 8. d5 {[%emt 0:00:22]} Nbd7 {[%emt 0:01:35]} 9. Re1 {[%emt 0:14:06]} e5 {[%emt 0:03:38]} 10. Bg5 {[%emt 0:00:26]} h6 {[%emt 0:02:35]} 11. Bc1 {[%emt 0:06:01]} a5 {[%emt 0:03:08]} 12. b3 {[%emt 0:01:33]} Nxe4 {[%emt 0:13:05]} 13. Nxe4 {[%emt 0:00:55]} f5 {[%emt 0:00:03]} 14. Nc3 {[%emt 0:03:17]} e4 {[%emt 0:00:28]} 15. Nd4 {[%emt 0:00:22]} Qf6 {[%emt 0:00:17]} 16. Be3 {[%emt 0:01:28]} f4 {[%emt 0:00:18]} 17. Nxe4 {[%emt 0:01:30]} Qe5 {[%emt 0:00:33]} 18. Qd3 {[%emt 0:34:17]} fxe3 {[%emt 0:01:04]} 19. fxe3 {[%emt 0:00:22]} Rae8 {[%emt 0:02:18]} 20. Ne6 {[%emt 0:03:16]} Rxe6 {[%emt 0:01:37]} 21. dxe6 {[%emt 0:01:53]} Bxe4 {[%emt 0:00:49]} 22. Qd2 {[%emt 0:03:29]} Qg5 {[%emt 0:02:58]} 23. Bd3 {[%emt 0:26:22]} Bxd3 {[%emt 0:01:23]} 24. Qxd3 {[%emt 0:00:00]} Bxa1 {[%emt 0:02:44]} 25. Rxa1 {[%emt 0:00:00]} Qf6 {[%emt 0:00:33]} 26. h3 {[%emt 0:00:00]} Qxa1+ {[%emt 0:00:26]} 27. Kh2 {[%emt 0:00:00]} Qe5+ {[%emt 0:00:26]} 28. Kg1 {[%emt 0:00:00]} Qxe6 {[%emt 0:00:16]} 29. Kh1 {[%emt 0:00:00]} Kh7 {[%emt 0:01:04]} 0-1

[Event "FIDE WCCC Open-12 2024"]
[Site "Montesilvano"]
[Date "2024.11.24"]
[Round "9.64"]
[White "Krasniqi, Troi"]
[Black "Maari Kelly Sosi"]
[Result "1-0"]
[ECO "C44"]
[WhiteElo "1610"]
[BlackElo "1587"]
[Annotator "NA RC"]
[PlyCount "41"]
[EventDate "2024.11.18"]
[EventType "swiss"]
[EventCountry "ITA"]
[SourceTitle "playchess.com"]
[Source "ChessBase"]
[SourceQuality "1"]
[TimeControl "5400+30"]

1. e4 {[%emt 0:00:02]} e5 {[%emt 0:00:09]} 2. Nf3 {[%emt 0:00:04]} Nc6 {[%emt 1:31:21]} 3. d4 {[%emt 0:00:05]} exd4 {[%emt 0:00:00]} 4. Bc4 {[%emt 0:00:07]} Bc5 {[%emt 0:00:00]} 5. c3 {[%emt 0:00:05]} dxc3 {[%emt 0:00:00]} 6. Bxf7+ {[%emt 0:00:11]} Kxf7 {[%emt 0:00:00]} 7. Qd5+ {[%emt 0:00:11]} Ke8 {[%emt 0:00:00]} 8. Qh5+ {[%emt 0:00:06]} Kf8 {[%emt 0:00:00]} 9. Qxc5+ {[%emt 0:00:08]} Nge7 {[%emt 0:00:00]} 10. Nxc3 {[%emt 0:00:27]} d6 {[%emt 0:00:00]} 11. Qe3 {[%emt 0:00:22]} Nb4 {[%emt 0:00:00]} 12. Qe2 {[%emt 0:00:56]} Bg4 {[%emt 0:00:00]} 13. a3 {[%emt 0:00:50]} Nbc6 {[%emt 0:00:00]} 14. h3 {[%emt 1:33:56]} Bh5 {[%emt 0:00:00]} 15. Bf4 {[%emt 0:00:00]} Kf7 {[%emt 0:00:00]} 16. Ng5+ {[%emt 0:00:00]} Ke8 {[%emt 0:07:00]} 17. Qxh5+ {[%emt 0:00:00]} Ng6 {[%emt 0:00:00]} 18. O-O {[%emt 0:00:00]} Kd7 {[%emt 0:00:00]} 19. Qg4+ {[%emt 0:00:00]} Ke8 {[%emt 0:00:00]} 20. Nd5 {[%emt 0:00:00]} Nce7 {[%emt 0:00:00]} 21. Ne6 {[%emt 0:00:00]} 1-0